{"text_format":"1","workbook":"xlsx","n_sheets":2,"sheets":["1-PH & 3-PH","Hand Filled"],"not_rendered":{"charts":0,"images":1,"macros":1,"external_links":0,"defined_names":2,"comments":2,"pivot_tables":0},"unopened":[],"bounds":{"document_bytes":16777216,"sheet_cells":100000,"rows_first":2000,"rows_last":500,"rows_between":2000,"halvings":0,"cell_chars":16384,"cell_head_chars":4096},"cells_cut":0,"cells_raw":0,"read":"whole","date_system":"1900"}

{"sheet":"1-PH & 3-PH","index":0,"n_rows":55,"n_cols":10,"rows_kept":55,"cut":false,"hidden":false,"merged":[[22,0,22,1],[22,5,22,6],[22,7,22,8],[25,0,25,1],[25,5,25,6],[49,3,49,4],[31,8,31,9],[32,0,33,2],[32,3,33,3],[32,4,32,6],[52,0,52,9],[28,4,28,7],[47,0,47,9],[48,0,48,9],[43,0,43,2],[44,0,44,2],[45,0,45,2],[46,0,46,2],[31,7,46,7],[34,0,34,2],[36,0,36,2],[37,0,37,2],[38,0,38,2],[39,0,39,2],[40,0,40,2],[29,0,29,1],[29,2,29,9],[30,0,30,9],[51,1,51,9],[49,7,49,8],[49,5,49,6],[49,1,49,2],[35,0,35,2],[28,0,28,2],[50,0,50,1],[50,5,50,6],[50,7,50,9],[41,0,41,2],[42,0,42,2],[25,7,25,8],[23,0,23,1],[23,5,23,6],[23,7,23,8],[24,0,24,1],[32,8,32,9],[31,0,31,6],[24,5,24,6],[24,7,24,8],[26,0,26,9],[27,0,27,2],[27,3,27,5],[27,6,27,7],[27,8,27,9],[18,0,18,9],[19,0,19,9],[20,0,20,1],[20,5,20,6],[20,7,20,8],[21,0,21,1],[21,5,21,6],[21,7,21,8],[16,0,16,9],[17,0,17,9],[14,0,14,1],[15,5,15,7],[15,8,15,9],[15,0,15,1],[15,2,15,3],[14,2,14,3],[13,0,13,9],[11,0,11,1],[11,2,11,4],[11,5,11,6],[11,7,11,9],[12,0,12,1],[12,2,12,4],[12,5,12,6],[12,7,12,9],[14,8,14,9],[14,5,14,7],[9,0,9,1],[9,2,9,4],[9,5,9,6],[9,7,9,9],[10,0,10,1],[10,2,10,4],[10,5,10,6],[10,7,10,9],[7,0,7,1],[7,2,7,4],[7,5,7,6],[7,7,7,9],[8,0,8,1],[8,2,8,4],[8,5,8,6],[8,7,8,9],[0,0,1,4],[0,5,1,9],[5,0,5,1],[5,2,5,4],[5,5,5,6],[5,7,5,9],[6,0,6,1],[6,2,6,4],[6,5,6,6],[6,7,6,9],[2,0,2,9],[3,0,3,4],[3,5,3,9],[4,0,4,1],[4,2,4,4],[4,5,4,6],[4,7,4,9]]}
["L O A D   S H E E T",null,null,null,null,"Northern Operating Region (Maine Public District)"]
[]
["Please Note:  The prompt return of this properly completed form is mandatory before we will begin engineering and/or extend service.  This shall be accomplished by the Contractor, Electrical Designer, and/or Customer.  This information is essential during the initial stages of the service to determine the appropriate line equipment, transformer sizing, metering, and applicable rate."]
["Customer Information",null,null,null,null,"Electrical Contractor Information"]
["Business Name:",null,null,null,null,"Company Name:"]
["Contact Name:",null,null,null,null,"Contact Name:"]
["Service Address:",null,null,null,null,"Mailing Address:"]
["Service Town:",null,null,null,null,"Mailing Town / City:"]
["Mailing Address:",null,null,null,null,"Mailing State / Zip:"]
["Mailing Town / City:",null,null,null,null,"Company Telephone:"]
["Mailing State / Zip:",null,null,null,null,"Local Telephone:"]
["Company Telephone:",null,null,null,null,"Cell Phone:"]
["Email Address:",null,null,null,null,"Email Address:"]
[]
["Date:",null,null,null,null,"Issue Number:"]
["Number of Employees:",null,null,null,null,"Hours of Operation/Week:"]
["Briefly describe the business and activities at this service location.  What products and services do you provide?"]
[]
[]
["Electrical Service Information"]
["SERVICE TYPE",null,"VOLTAGE","NUMBER OF CONDUCTORS PER PHASE","CONDUCTOR COMPOSITION","CONDUCTOR SIZE",null,"MAIN DISCONNECT SIZE (AMPS)",null,"NUMBER OF METERS"]
["1-Phase",null,"120 / 240"]
["3-Phase \"Y\"",null,"120 / 208"]
["3-Phase \"Y\"",null,"277 / 480"]
["3-Phase \"Delta\"",null,"240"]
["3-Phase \"Delta\"",null,"480"]
[1]
["Largest Motor Rating (HP):",null,null,null,null,null,"Starts Per Day:"]
["Soft Starts Utilized?:",null,null,null,"Dry-Type Transformers Utilized?:"]
["Additional Notes:"]
[]
["Load Information",null,null,null,null,null,null,null,"BASED ON 1.0 PF"]
["LOAD TYPE",null,null,"PHASE   (1 or 3)","CONNECTED LOAD",null,null,null,"VERSANT - OFFICE USE ONLY"]
[null,null,null,null,"AMPS","VOLTS","KVA",null,"DIVERSITY","KVA DEMAND"]
["Specific Write-In",null,null,null,null,null,{"$f":"IF(D35=1,SUM(E35*F35)/1000,IF(D35=3,SUM(E35*F35*1.732)/1000,\"0\"))","v":"0"},null,0.6,{"$f":"G35*I35","v":0}]
["EV Charging (Electric Vehicle)",null,null,null,null,null,{"$f":"IF(D36=1,SUM(E36*F36)/1000,IF(D36=3,SUM(E36*F36*1.732)/1000,\"0\"))","v":"0"},null,1,{"$f":"G36*I36","v":0}]
["Electric Space Heater",null,null,null,null,null,{"$f":"IF(D37=1,SUM(E37*F37)/1000,IF(D37=3,SUM(E37*F37*1.732)/1000,\"0\"))","v":"0"},null,0.6,0]
["HVAC",null,null,null,null,null,"0",null,0.6,0]
["Water Heating",null,null,null,null,null,"0",null,0.25,0]
["Lighting",null,null,null,null,null,"0",null,0.9,0]
["Industrial Process Heat",null,null,null,null,null,"0",null,0.7,0]
["Motors",null,null,null,null,null,"0",null,0.5,0]
["Computers",null,null,null,null,null,"0",null,0.8,0]
["Refrigeration",null,null,null,null,null,"0",null,0.6,0]
["Miscellaneous",null,null,null,null,null,"0",null,0.2,0]
["Existing KVA Demand",null,null,null,null,null,{"$f":"IF(D46=1,SUM(E46*F46)/1000,IF(D46=3,SUM(E46*F46*1.732)/1000,\"0\"))","v":"0"},null,1,0]
["TOTAL LOAD DEMAND:",null,null,null,{"$f":"SUM(E35:E46)","v":0},null,{"$f":"SUM(G35:G46)","v":0},null,"TOTAL:",{"$f":"SUM(J35:J46)","v":0}]
[]
["VERSANT POWER - OFFICE USE ONLY"]
["EWP:",null,null,"TRANSFORMER SIZE:",null,null,null,"PRIMARY FUSE SIZE:"]
["METERING TYPE:",null,"PRIMARY",null,"SECONDARY","METERING INFO:"]
["NOTES:"]
[]
["Aluminum",1,"Yes",null,null,null,null,null,null,"Versant Power - Northern Operating Region - Maine Public District - Version:  1.5"]
["Copper",3,"No"]

{"sheet":"Hand Filled","index":1,"n_rows":55,"n_cols":10,"rows_kept":55,"cut":false,"hidden":false,"merged":[[50,0,50,1],[50,5,50,6],[50,7,50,9],[51,1,51,9],[52,0,52,9],[46,0,46,2],[47,0,47,9],[48,0,48,9],[49,1,49,2],[49,3,49,4],[49,5,49,6],[49,7,49,8],[29,0,29,1],[29,2,29,9],[30,0,30,9],[31,0,31,6],[31,7,46,7],[31,8,31,9],[32,0,33,2],[32,3,33,3],[32,4,32,6],[32,8,32,9],[40,0,40,2],[41,0,41,2],[42,0,42,2],[43,0,43,2],[44,0,44,2],[45,0,45,2],[34,0,34,2],[35,0,35,2],[36,0,36,2],[37,0,37,2],[38,0,38,2],[39,0,39,2],[26,0,26,9],[27,0,27,2],[27,3,27,5],[27,6,27,7],[27,8,27,9],[28,0,28,2],[28,4,28,7],[24,0,24,1],[24,5,24,6],[24,7,24,8],[25,0,25,1],[25,5,25,6],[25,7,25,8],[22,0,22,1],[22,5,22,6],[22,7,22,8],[23,0,23,1],[23,5,23,6],[23,7,23,8],[18,0,18,9],[19,0,19,9],[20,0,20,1],[20,5,20,6],[20,7,20,8],[21,0,21,1],[21,5,21,6],[21,7,21,8],[15,0,15,1],[15,2,15,3],[15,5,15,7],[15,8,15,9],[16,0,16,9],[17,0,17,9],[14,0,14,1],[14,2,14,3],[14,5,14,7],[14,8,14,9],[13,0,13,9],[11,0,11,1],[11,2,11,4],[11,5,11,6],[11,7,11,9],[12,0,12,1],[12,2,12,4],[12,5,12,6],[12,7,12,9],[9,0,9,1],[9,2,9,4],[9,5,9,6],[9,7,9,9],[10,0,10,1],[10,2,10,4],[10,5,10,6],[10,7,10,9],[7,0,7,1],[7,2,7,4],[7,5,7,6],[7,7,7,9],[8,0,8,1],[8,2,8,4],[8,5,8,6],[8,7,8,9],[5,0,5,1],[5,2,5,4],[5,5,5,6],[5,7,5,9],[6,0,6,1],[6,2,6,4],[6,5,6,6],[6,7,6,9],[0,0,1,4],[0,5,1,9],[2,0,2,9],[3,0,3,4],[3,5,3,9],[4,0,4,1],[4,2,4,4],[4,5,4,6],[4,7,4,9]]}
["L O A D   S H E E T",null,null,null,null,"Northern Operating Region (Maine Public District)"]
[]
["Please Note:  The prompt return of this properly completed form is mandatory before we will begin engineering and/or extend service.  This shall be accomplished by the Contractor, Electrical Designer, and/or Customer.  This information is essential during the initial stages of the service to determine the appropriate line equipment, transformer sizing, metering, and applicable rate."]
["Customer Information",null,null,null,null,"Electrical Contractor Information"]
["Business Name:",null,null,null,null,"Company Name:"]
["Contact Name:",null,null,null,null,"Contact Name:"]
["Service Address:",null,null,null,null,"Mailing Address:"]
["Service Town:",null,null,null,null,"Mailing Town / City:"]
["Mailing Address:",null,null,null,null,"Mailing State / Zip:"]
["Mailing Town / City:",null,null,null,null,"Company Telephone:"]
["Mailing State / Zip:",null,null,null,null,"Local Telephone:"]
["Company Telephone:",null,null,null,null,"Cell Phone:"]
["Email Address:",null,null,null,null,"Email Address:"]
[]
["Date:",null,null,null,null,"Issue Number:"]
["Number of Employees:",null,null,null,null,"Hours of Operation/Week:"]
["Briefly describe the business and activities at this service location.  What products and services do you provide?"]
[]
[]
["Electrical Service Information"]
["SERVICE TYPE",null,"VOLTAGE","NUMBER OF CONDUCTORS PER PHASE","CONDUCTOR COMPOSITION","CONDUCTOR SIZE",null,"MAIN DISCONNECT SIZE (AMPS)",null,"NUMBER OF METERS"]
["1-Phase",null,"120 / 240"]
["3-Phase \"Y\"",null,"120 / 208"]
["3-Phase \"Y\"",null,"277 / 480"]
["3-Phase \"Delta\"",null,"240"]
["3-Phase \"Delta\"",null,"480"]
[]
["Largest Motor Rating (HP):",null,null,null,null,null,"Starts Per Day:"]
["Soft Starts Utilized?:",null,null,null,"Dry-Type Transformers Utilized?:"]
["Additional Notes:"]
[]
["Load Information",null,null,null,null,null,null,null,"BASED ON 1.0 PF"]
["LOAD TYPE",null,null,"PHASE   (1 or 3)","CONNECTED LOAD",null,null,null,"VERSANT - OFFICE USE ONLY"]
[null,null,null,null,"AMPS","VOLTS","KVA",null,"DIVERSITY","KVA DEMAND"]
["Specific Write-In",null,null,null,null,null,null,null,0.6,{"$f":"G35*I35","v":0}]
["EV Charging (Electric Vehicle)",null,null,null,null,null,null,null,1,{"$f":"G36*I36","v":0}]
["Electric Space Heater",null,null,null,null,null,null,null,0.6,0]
["HVAC",null,null,null,null,null,null,null,0.6,0]
["Water Heating",null,null,null,null,null,null,null,0.25,0]
["Lighting",null,null,null,null,null,null,null,0.9,0]
["Industrial Process Heat",null,null,null,null,null,null,null,0.7,0]
["Motors",null,null,null,null,null,null,null,0.5,0]
["Computers",null,null,null,null,null,null,null,0.8,0]
["Refrigeration",null,null,null,null,null,null,null,0.6,0]
["Miscellaneous",null,null,null,null,null,null,null,0.2,0]
["Existing KVA Demand",null,null,null,null,null,null,null,1,0]
["TOTAL LOAD DEMAND:",null,null,null,null,null,null,null,"TOTAL:",{"$f":"SUM(J35:J46)","v":0}]
[]
["VERSANT POWER - OFFICE USE ONLY"]
["EWP:",null,null,"TRANSFORMER SIZE:",null,null,null,"PRIMARY FUSE SIZE:"]
["METERING TYPE:",null,"PRIMARY",null,"SECONDARY","METERING INFO:"]
["NOTES:"]
[]
["Aluminum",1,"Yes",null,null,null,null,null,null,"Versant Power - Northern Operating Region - Maine Public District - Version:  1.5"]
["Copper",3,"No"]